fUST/lending_fUST_20250625
["ID","MTS","AMOUNT","RATE_DAILY","PERIOD"]
[367426668,1750794646232,-1476.8542889,0.00019399,2]
[367426670,1750794646247,-4400.00001035,0.00019399,2]
[367426672,1750794646258,-2140.0,0.00019399,2]
[367426679,1750794646309,-460.0,0.00016438,2]
[367426680,1750794646319,-65370.13316462,0.00019399,2]
[367426687,1750794646373,-200204.94760162,0.00019399,2]
[367426717,1750794646672,-6586.45310589,0.00019399,2]
[367427023,1750794764921,743.919726,0.00013699,2]
[367427024,1750794768846,250.093427,0.0002256,30]
[367427025,1750794769125,250.093427,0.0002208,30]
[367427026,1750794769402,250.093427,0.000216,30]
[367427028,1750794821403,3000.0,0.000229,30]
[367427029,1750794821895,3000.0,0.0002291,30]
[367427030,1750794822866,3000.0,0.0002292,30]
[367427031,1750794823507,3000.0,0.0002293,30]
[367427032,1750794823991,3000.0,0.0002294,30]
[367427033,1750794824618,3000.0,0.0002295,30]
[367427034,1750794825372,3000.0,0.0002296,30]
[367427035,1750794826036,3000.0,0.0002297,30]
[367427036,1750794826581,3000.0,0.0002298,30]
[367427037,1750794827122,3000.0,0.0002299,30]
[367427038,1750794828199,3000.0,0.00023,30]
[367427039,1750794890670,192.929215,0.0002256,30]
[367427040,1750794890950,192.929215,0.0002208,30]
[367427041,1750794891322,192.929215,0.000216,30]
[367427044,1750795043357,954.12152878,0.00015644,2]
[367427045,1750795043379,97.22022352,0.00015644,2]
[367427047,1750795172544,217.0,0.0002191,120]
[367427048,1750795173042,217.0,0.000219,120]
[367427049,1750795173482,217.0,0.0002189,120]
[367427050,1750795173922,217.0,0.0002198,120]
[367427051,1750795174361,217.0,0.0002197,120]
[367427052,1750795174798,217.0,0.0002196,120]
[367427053,1750795175236,217.0,0.0002198,120]
[367427054,1750795175670,217.0,0.0002197,120]
[367427055,1750795176103,217.0,0.0002269,120]
[367427056,1750795176540,223.17,0.0002268,120]
[367427064,1750795318760,151.0,0.00015644,2]
[367427065,1750795318806,152.3268742,0.00015644,2]
[367427071,1750795513864,158.90454,0.00015575,2]
[367427073,1750795605799,582.6189647,0.00015506,2]
[367427074,1750795620311,152.9903113,0.00015644,2]
[367427075,1750795705783,18704.93908628,0.00015572,2]
[367427076,1750795705806,6195.06091372,0.00015572,2]
[367427107,1750795832175,-187.5798374,0.00016337,2]
[367427109,1750795832184,-224.75239447,0.00016338,2]
[367427115,1750795832228,-105.13444434,0.00016338,2]
[367427117,1750795832238,-300.0,0.00016437,2]
[367427119,1750795832247,-300.0,0.00016437,2]
[367427121,1750795832257,-260.82059647,0.00016437,2]
[367427124,1750795832269,-39.17940353,0.00016437,2]
[367427125,1750795832278,-300.0,0.00016437,2]
[367427128,1750795832288,-1200.0,0.00016437,2]
[367427130,1750795832297,-460.0,0.00016438,2]
[367427132,1750795832307,-460.0,0.00016438,2]
[367427135,1750795832317,-460.0,0.00016438,2]
[367427138,1750795832326,-460.0,0.00016438,2]
[367427140,1750795832335,-460.0,0.00016438,2]
[367427143,1750795832344,-460.0,0.00016438,2]
[367427146,1750795832354,-460.0,0.00016438,2]
[367427149,1750795832364,-460.0,0.00016438,2]
[367427151,1750795832373,-500.0,0.00016438,2]
[367427154,1750795832382,-246.02,0.00016438,2]
[367427157,1750795832392,-460.0,0.00016438,2]
[367427160,1750795832401,-402.56663879,0.00016438,2]
[367427163,1750795832410,-460.0,0.00016438,2]
[367427166,1750795832420,-460.0,0.00016438,2]
[367427169,1750795832429,-460.0,0.00016438,2]
[367427172,1750795832439,-460.0,0.00016438,2]
[367427175,1750795832449,-432.75046842,0.00016438,2]
[367427178,1750795832459,-460.0,0.00016438,2]
[367427181,1750795832469,-460.0,0.00016438,2]
[367427184,1750795832478,-402.5933611,0.00016438,2]
[367427188,1750795832489,-460.0,0.00016438,2]
[367427190,1750795832499,-495.13070507,0.00016438,2]
[367427192,1750795832507,-460.0,0.00016438,2]
[367427194,1750795832516,-460.0,0.00016438,2]
[367427196,1750795832526,-1001.25375367,0.00016438,2]
[367427198,1750795832535,-460.0,0.00016438,2]
[367427200,1750795832544,-460.0,0.00016438,2]
[367427202,1750795832554,-460.0,0.00016438,2]
[367427204,1750795832563,-460.0,0.00016438,2]
[367427206,1750795832572,-544.13,0.00016438,2]
[367427207,1750795832581,-460.0,0.00016438,2]
[367427209,1750795832591,-460.0,0.00016438,2]
[367427212,1750795832600,-460.0,0.00016438,2]
[367427214,1750795832610,-460.0,0.00016438,2]
[367427216,1750795832619,-500.0,0.00016438,2]
[367427217,1750795832628,-435.28217313,0.00016438,2]
[367427219,1750795832637,-460.0,0.00016438,2]
[367427221,1750795832646,-460.0,0.00016438,2]
[367427223,1750795832657,-419.64771371,0.00016438,2]
[367427225,1750795832666,-560.72218758,0.00016438,2]
[367427227,1750795832676,-465.42270465,0.00016438,2]
[367427230,1750795832686,-460.0,0.00016438,2]
[367427231,1750795832696,-460.0,0.00016438,2]
[367427233,1750795832705,-471.80308266,0.00016438,2]
[367427235,1750795832714,-487.16130312,0.00016438,2]
[367427237,1750795832723,-460.0,0.00016438,2]
[367427239,1750795832732,-1000.0,0.00016438,2]
[367427241,1750795832742,-572.15126314,0.00016438,2]
[367427243,1750795832751,-460.456614,0.00016438,2]
[367427245,1750795832760,-507.50500775,0.00016438,2]
[367427247,1750795832772,-400.22030454,0.00016438,2]
[367427249,1750795832781,-442.24541777,0.00016438,2]
[367427251,1750795832791,-443.33735209,0.00016438,2]
[367427253,1750795832801,-460.0,0.00016438,2]
[367427255,1750795832812,-460.0,0.00016438,2]
[367427257,1750795832821,-510.25510389,0.00016438,2]
[367427259,1750795832830,-460.0,0.00016438,2]
[367427261,1750795832839,-448.38069221,0.00016438,2]
[367427263,1750795832849,-472.4070669,0.00016438,2]
[367427265,1750795832858,-460.0,0.00016438,2]
[367427267,1750795832867,-465.22992159,0.00016438,2]
[367427269,1750795832877,-460.0,0.00016438,2]
[367427271,1750795832887,-468.17310777,0.00016438,2]
[367427273,1750795832896,-474.07019463,0.00016438,2]
[367427275,1750795832906,-440.0,0.00016438,2]
[367427277,1750795832915,-527.89635548,0.00016438,2]
[367427279,1750795832924,-504.31619993,0.00016438,2]
[367427281,1750795832934,-458.31317039,0.00016438,2]
[367427283,1750795832943,-405.27156078,0.00016438,2]
[367427285,1750795832952,-460.0,0.00016438,2]
[367427287,1750795832961,-463.92103673,0.00016438,2]
[367427289,1750795832971,-460.0,0.00016438,2]
[367427291,1750795832980,-452.50958572,0.00016438,2]
[367427293,1750795832990,-460.0,0.00016438,2]
[367427295,1750795832999,-415.05227428,0.00016438,2]
[367427297,1750795833009,-460.0,0.00016438,2]
[367427299,1750795833019,-460.0,0.00016438,2]
[367427301,1750795833028,-468.085072,0.00016438,2]
[367427303,1750795833038,-500.0,0.00016438,2]
[367427305,1750795833047,-183.28023209,0.00016438,2]
[367427307,1750795833056,-460.0,0.00016438,2]
[367427309,1750795833066,-460.0,0.00016438,2]
[367427311,1750795833075,-460.0,0.00016438,2]
[367427313,1750795833084,-460.0,0.00016438,2]
[367427315,1750795833093,-460.0,0.00016438,2]
[367427317,1750795833103,-377.89010797,0.00016438,2]
[367427319,1750795833112,-460.0,0.00016438,2]
[367427321,1750795833122,-460.0,0.00016438,2]
[367427323,1750795833132,-434.55644681,0.00016438,2]
[367427325,1750795833141,-460.0,0.00016438,2]
[367427327,1750795833150,-467.6373894,0.00016438,2]
[367427329,1750795833160,-460.0,0.00016438,2]
[367427331,1750795833170,-460.0,0.00016438,2]
[367427333,1750795833180,-482.22415435,0.00016438,2]
[367427334,1750795833189,-460.0,0.00016438,2]
[367427335,1750795833198,-466.01310439,0.00016438,2]
[367427336,1750795833207,-460.0,0.00016438,2]
[367427337,1750795833216,-397.98358521,0.00016438,2]
[367427338,1750795833225,-463.03080676,0.00016438,2]
[367427339,1750795833234,-460.0,0.00016438,2]
[367427340,1750795833244,-572.58483918,0.00016438,2]
[367427341,1750795833253,-460.0,0.00016438,2]
[367427342,1750795833262,-500.0,0.00016438,2]
[367427343,1750795833271,-460.0,0.00016438,2]
[367427344,1750795833282,-460.0,0.00016438,2]
[367427345,1750795833291,-420.93566336,0.00016438,2]
[367427346,1750795833300,-437.37159032,0.00016438,2]
[367427347,1750795833310,-417.5763842,0.00016438,2]
[367427348,1750795833319,-478.87731816,0.00016438,2]
[367427349,1750795833329,-460.0,0.00016438,2]
[367427350,1750795833338,-484.06279034,0.00016438,2]
[367427351,1750795833348,-460.0,0.00016438,2]
[367427352,1750795833357,-460.0,0.00016438,2]
[367427353,1750795833366,-460.0,0.00016438,2]
[367427354,1750795833375,-481.34091237,0.00016438,2]
[367427355,1750795833385,-460.0,0.00016438,2]
[367427356,1750795833394,-460.0,0.00016438,2]
[367427357,1750795833404,-460.0,0.00016438,2]
[367427358,1750795833414,-460.0,0.00016438,2]
[367427359,1750795833423,-266.38516053,0.00016438,2]
[367427360,1750795833433,-460.0,0.00016438,2]
[367427361,1750795833442,-460.0,0.00016438,2]
[367427363,1750795833452,-460.0,0.00016438,2]
[367427364,1750795833462,-460.0,0.00016438,2]
[367427366,1750795833472,-460.0,0.00016438,2]
[367427368,1750795833482,-460.0,0.00016438,2]
[367427370,1750795833491,-460.0,0.00016438,2]
[367427372,1750795833501,-351.23316417,0.00016438,2]
[367427374,1750795833511,-500.0,0.00016438,2]
[367427376,1750795833520,-460.0,0.00016438,2]
[367427378,1750795833531,-460.0,0.00016438,2]
[367427380,1750795833541,-460.0,0.00016438,2]
[367427382,1750795833550,-524.57628383,0.00016438,2]
[367427384,1750795833560,-460.0,0.00016438,2]
[367427386,1750795833569,-460.0,0.00016438,2]
[367427388,1750795833579,-460.0,0.00016438,2]
[367427390,1750795833588,-423.52172196,0.00016438,2]
[367427392,1750795833597,-460.0,0.00016438,2]
[367427394,1750795833607,-460.0,0.00016438,2]
[367427396,1750795833617,-460.0,0.00016438,2]
[367427398,1750795833626,-460.0,0.00016438,2]
[367427400,1750795833636,-460.0,0.00016438,2]
[367427402,1750795833645,-441.28812256,0.00016438,2]
[367427404,1750795833654,-460.0,0.00016438,2]
[367427406,1750795833664,-430.0,0.00016438,2]
[367427408,1750795833673,-475.54302125,0.00016438,2]
[367427410,1750795833683,-460.0,0.00016438,2]
[367427412,1750795833692,-460.0,0.00016438,2]
[367427414,1750795833702,-460.0,0.00016438,2]
[367427416,1750795833711,-460.0,0.00016438,2]
[367427417,1750795833720,-460.0,0.00016438,2]
[367427419,1750795833730,-460.0,0.00016438,2]
[367427421,1750795833739,-460.0,0.00016438,2]
[367427423,1750795833748,-491.83606449,0.00016438,2]
[367427426,1750795833757,-460.0,0.00016438,2]
[367427427,1750795833767,-460.0,0.00016438,2]
[367427430,1750795833776,-460.0,0.00016438,2]
[367427431,1750795833787,-460.0,0.00016438,2]
[367427433,1750795833796,-460.0,0.00016438,2]
[367427435,1750795833809,-460.0,0.00016438,2]
[367427437,1750795833819,-460.0,0.00016438,2]
[367427439,1750795833828,-460.0,0.00016438,2]
[367427441,1750795833838,-460.0,0.00016438,2]
[367427443,1750795833849,-460.0,0.00016438,2]
[367427445,1750795833858,-460.0,0.00016438,2]
[367427447,1750795833867,-460.0,0.00016438,2]
[367427449,1750795833878,-501.076996,0.00016438,2]
[367427451,1750795833887,-438.27894563,0.00016438,2]
[367427453,1750795833897,-462.14113955,0.00016438,2]
[367427455,1750795833906,-460.0,0.00016438,2]
[367427457,1750795833915,-502.1007446,0.00016438,2]
[367427459,1750795833925,-460.0,0.00016438,2]
[367427461,1750795833934,-460.0,0.00016438,2]
[367427463,1750795833944,-412.83360689,0.00016438,2]
[367427465,1750795833953,-460.0,0.00016438,2]
[367427467,1750795833962,-433.24418032,0.00016438,2]
[367427468,1750795833971,-460.0,0.00016438,2]
[367427470,1750795833980,-460.0,0.00016438,2]
[367427472,1750795833990,-542.30681717,0.00016438,2]
[367427474,1750795833999,-460.0,0.00016438,2]
[367427476,1750795834008,-460.0,0.00016438,2]
[367427478,1750795834018,-460.0,0.00016438,2]
[367427480,1750795834026,-460.0,0.00016438,2]
[367427482,1750795834041,-460.0,0.00016438,2]
[367427484,1750795834051,-311.11497704,0.00016438,2]
[367427486,1750795834061,-460.0,0.00016438,2]
[367427488,1750795834071,-460.0,0.00016438,2]
[367427490,1750795834081,-460.0,0.00016438,2]
[367427492,1750795834091,-460.0,0.00016438,2]
[367427494,1750795834100,-606.85596742,0.00016438,2]
[367427496,1750795834110,-460.0,0.00016438,2]
[367427498,1750795834119,-460.0,0.00016438,2]
[367427500,1750795834128,-460.0,0.00016438,2]
[367427502,1750795834137,-460.0,0.00016438,2]
[367427504,1750795834147,-460.0,0.00016438,2]
[367427506,1750795834157,-460.0,0.00016438,2]
[367427508,1750795834167,-460.0,0.00016438,2]
[367427510,1750795834177,-460.0,0.00016438,2]
[367427512,1750795834187,-460.0,0.00016438,2]
[367427514,1750795834197,-460.0,0.00016438,2]
[367427516,1750795834207,-460.0,0.00016438,2]
[367427518,1750795834218,-465.93686497,0.00016438,2]
[367427520,1750795834228,-460.0,0.00016438,2]
[367427522,1750795834237,-460.0,0.00016438,2]
[367427524,1750795834247,-460.0,0.00016438,2]
[367427526,1750795834257,-460.0,0.00016438,2]
[367427528,1750795834266,-460.0,0.00016438,2]
[367427530,1750795834275,-460.0,0.00016438,2]
[367427532,1750795834287,-460.0,0.00016438,2]
[367427534,1750795834296,-460.0,0.00016438,2]
[367427536,1750795834306,-500.0,0.00016438,2]
[367427538,1750795834315,-460.0,0.00016438,2]
[367427540,1750795834324,-460.0,0.00016438,2]
[367427542,1750795834333,-460.0,0.00016438,2]
[367427544,1750795834341,-460.0,0.00016438,2]
[367427546,1750795834350,-460.0,0.00016438,2]
[367427547,1750795834359,-396.58582177,0.00016438,2]
[367427550,1750795834369,-460.0,0.00016438,2]
[367427552,1750795834378,-460.0,0.00016438,2]
[367427553,1750795834387,-430.0,0.00016438,2]
[367427555,1750795834395,-500.0,0.00016438,2]
[367427557,1750795834405,-460.0,0.00016438,2]
[367427559,1750795834414,-460.0,0.00016438,2]
[367427561,1750795834423,-460.0,0.00016438,2]
[367427563,1750795834432,-460.0,0.00016438,2]
[367427565,1750795834442,-717.53,0.00016438,2]
[367427567,1750795834451,-460.0,0.00016438,2]
[367427569,1750795834460,-460.0,0.00016438,2]
[367427571,1750795834470,-460.0,0.00016438,2]
[367427573,1750795834479,-420.0,0.00016438,2]
[367427575,1750795834488,-500.0,0.00016438,2]
[367427576,1750795834497,-460.0,0.00016438,2]
[367427577,1750795834506,-460.0,0.00016438,2]
[367427578,1750795834516,-750.32,0.00016438,2]
[367427579,1750795834525,-460.0,0.00016438,2]
[367427580,1750795834536,-460.0,0.00016438,2]
[367427581,1750795834545,-460.0,0.00016438,2]
[367427582,1750795834555,-460.0,0.00016438,2]
[367427583,1750795834564,-460.0,0.00016438,2]
[367427584,1750795834573,-460.0,0.00016438,2]
[367427585,1750795834582,-460.0,0.00016438,2]
[367427586,1750795834591,-460.0,0.00016438,2]
[367427587,1750795834600,-1011.8219454,0.00016438,2]
[367427588,1750795834610,-460.0,0.00016438,2]
[367427589,1750795834619,-460.0,0.00016438,2]
[367427590,1750795834627,-460.0,0.00016438,2]
[367427591,1750795834637,-460.0,0.00016438,2]
[367427592,1750795834646,-460.0,0.00016438,2]
[367427593,1750795834655,-212.67411085,0.00016438,2]
[367427594,1750795834664,-460.0,0.00016438,2]
[367427595,1750795834673,-460.0,0.00016438,2]
[367427596,1750795834682,-460.0,0.00016438,2]
[367427597,1750795834691,-460.0,0.00016438,2]
[367427598,1750795834701,-1134.92,0.00016438,2]
[367427599,1750795834710,-460.0,0.00016438,2]
[367427600,1750795834720,-460.0,0.00016438,2]
[367427601,1750795834729,-403.56176395,0.00016438,2]
[367427602,1750795834738,-460.0,0.00016438,2]
[367427603,1750795834748,-467.84179581,0.00016438,2]
[367427604,1750795834757,-460.0,0.00016438,2]
[367427605,1750795834767,-460.0,0.00016438,2]
[367427606,1750795834777,-460.0,0.00016438,2]
[367427607,1750795834788,-460.0,0.00016438,2]
[367427608,1750795834797,-460.0,0.00016438,2]
[367427609,1750795834810,-460.0,0.00016438,2]
[367427610,1750795834820,-460.0,0.00016438,2]
[367427611,1750795834829,-460.0,0.00016438,2]
[367427612,1750795834838,-460.0,0.00016438,2]
[367427613,1750795834848,-544.00792474,0.00016438,2]
[367427614,1750795834858,-433.72246233,0.00016438,2]
[367427615,1750795834867,-460.0,0.00016438,2]
[367427616,1750795834876,-442.31206777,0.00016438,2]
[367427617,1750795834886,-460.0,0.00016438,2]
[367427618,1750795834895,-460.0,0.00016438,2]
[367427619,1750795834904,-460.0,0.00016438,2]
[367427620,1750795834914,-460.0,0.00016438,2]
[367427621,1750795834923,-460.0,0.00016438,2]
[367427622,1750795834933,-460.0,0.00016438,2]
[367427623,1750795834942,-460.0,0.00016438,2]
[367427624,1750795834951,-460.0,0.00016438,2]
[367427625,1750795834961,-461.4846135,0.00016438,2]
[367427626,1750795834970,-460.0,0.00016438,2]
[367427627,1750795834979,-460.0,0.00016438,2]
[367427628,1750795834988,-460.0,0.00016438,2]
[367427629,1750795834997,-460.0,0.00016438,2]
[367427630,1750795835006,-460.0,0.00016438,2]
[367427631,1750795835016,-460.0,0.00016438,2]
[367427632,1750795835025,-460.0,0.00016438,2]
[367427633,1750795835036,-679.84,0.00016438,2]
[367427634,1750795835045,-460.0,0.00016438,2]
[367427635,1750795835055,-460.0,0.00016438,2]
[367427636,1750795835064,-527.33517307,0.00016438,2]
[367427637,1750795835073,-178.90351438,0.00016438,2]
[367427638,1750795835083,-460.0,0.00016438,2]
[367427639,1750795835092,-377.52176194,0.00016438,2]
[367427640,1750795835101,-460.0,0.00016438,2]
[367427641,1750795835111,-460.0,0.00016438,2]
[367427642,1750795835120,-460.0,0.00016438,2]
[367427643,1750795835129,-460.0,0.00016438,2]
[367427644,1750795835139,-308.09918855,0.00016438,2]
[367427645,1750795835148,-460.0,0.00016438,2]
[367427646,1750795835157,-460.0,0.00016438,2]
[367427647,1750795835166,-460.0,0.00016438,2]
[367427648,1750795835175,-460.0,0.00016438,2]
[367427649,1750795835184,-460.0,0.00016438,2]
[367427650,1750795835193,-460.0,0.00016438,2]
[367427651,1750795835202,-460.0,0.00016438,2]
[367427652,1750795835211,-460.0,0.00016438,2]
[367427653,1750795835221,-460.0,0.00016438,2]
[367427654,1750795835230,-460.0,0.00016438,2]
[367427655,1750795835239,-460.0,0.00016438,2]
[367427656,1750795835249,-460.0,0.00016438,2]
[367427657,1750795835258,-460.0,0.00016438,2]
[367427658,1750795835268,-460.0,0.00016438,2]
[367427659,1750795835277,-2109.59,0.00016438,2]
[367427660,1750795835288,-460.0,0.00016438,2]
[367427661,1750795835297,-460.0,0.00016438,2]
[367427662,1750795835306,-460.0,0.00016438,2]
[367427663,1750795835316,-460.0,0.00016438,2]
[367427664,1750795835325,-499.94077859,0.00016438,2]
[367427665,1750795835334,-460.0,0.00016438,2]
[367427666,1750795835344,-460.0,0.00016438,2]
[367427667,1750795835353,-460.0,0.00016438,2]
[367427668,1750795835362,-376.4716147,0.00016438,2]
[367427669,1750795835372,-433.12726625,0.00016438,2]
[367427670,1750795835382,-390.0,0.00016438,2]
[367427671,1750795835391,-374.03,0.00016438,2]
[367427672,1750795835401,-460.0,0.00016438,2]
[367427673,1750795835410,-460.0,0.00016438,2]
[367427674,1750795835421,-460.0,0.00016438,2]
[367427675,1750795835430,-460.0,0.00016438,2]
[367427676,1750795835440,-782.71,0.00016438,2]
[367427677,1750795835449,-432.50659476,0.00016438,2]
[367427678,1750795835458,-460.0,0.00016438,2]
[367427679,1750795835467,-460.0,0.00016438,2]
[367427680,1750795835476,-460.0,0.00016438,2]
[367427681,1750795835485,-460.0,0.00016438,2]
[367427682,1750795835495,-460.0,0.00016438,2]
[367427683,1750795835503,-460.0,0.00016438,2]
[367427684,1750795835513,-460.0,0.00016438,2]
[367427685,1750795835522,-460.0,0.00016438,2]
[367427686,1750795835532,-460.0,0.00016438,2]
[367427687,1750795835541,-460.0,0.00016438,2]
[367427688,1750795835551,-460.0,0.00016438,2]
[367427689,1750795835560,-690.51,0.00016438,2]
[367427690,1750795835569,-465.00341615,0.00016438,2]
[367427691,1750795835578,-460.0,0.00016438,2]
[367427692,1750795835588,-460.0,0.00016438,2]
[367427693,1750795835597,-460.0,0.00016438,2]
[367427694,1750795835606,-460.0,0.00016438,2]
[367427695,1750795835616,-460.0,0.00016438,2]
[367427696,1750795835625,-460.0,0.00016438,2]
[367427697,1750795835636,-460.0,0.00016438,2]
[367427698,1750795835646,-460.0,0.00016438,2]
[367427699,1750795835655,-460.0,0.00016438,2]
[367427700,1750795835664,-390.01616677,0.00016438,2]
[367427701,1750795835674,-814.67,0.00016438,2]
[367427702,1750795835683,-460.0,0.00016438,2]
[367427703,1750795835692,-460.0,0.00016438,2]
[367427704,1750795835701,-460.0,0.00016438,2]
[367427705,1750795835711,-460.0,0.00016438,2]
[367427706,1750795835865,-185.22,0.00016702,3]
[367427707,1750795835875,-555.67,0.00016702,3]
[367427708,1750795835886,-500.0,0.00016711,2]
[367427709,1750795835895,-500.0,0.00016711,2]
[367427710,1750795835905,-177.75826318,0.00016712,2]
[367427711,1750795835914,-460.0,0.00016712,2]
[367427712,1750795835924,-460.0,0.00016712,2]
[367427713,1750795835933,-460.0,0.00016712,2]
[367427714,1750795835943,-460.0,0.00016712,2]
[367427715,1750795835952,-467.66398614,0.00016712,2]
[367427716,1750795835962,-460.0,0.00016712,2]
[367427717,1750795835972,-460.0,0.00016712,2]
[367427718,1750795835982,-460.0,0.00016712,2]
[367427719,1750795835991,-460.0,0.00016712,2]
[367427720,1750795836001,-460.0,0.00016712,2]
[367427721,1750795836010,-460.0,0.00016712,2]
[367427722,1750795836019,-565.99037675,0.00016712,2]
[367427723,1750795836030,-547.12305648,0.00016712,2]
[367427724,1750795836039,-460.0,0.00016712,2]
[367427725,1750795836048,-460.0,0.00016712,2]
[367427726,1750795836058,-390.0,0.00016712,2]
[367427727,1750795836067,-276.66,0.00016712,2]
[367427728,1750795836077,-481.33062959,0.00016712,2]
[367427729,1750795836086,-460.0,0.00016712,2]
[367427730,1750795836096,-460.0,0.00016712,2]
[367427731,1750795836105,-460.0,0.00016712,2]
[367427732,1750795836115,-466.0344899,0.00016712,2]
[367427733,1750795836124,-460.0,0.00016712,2]
[367427734,1750795836133,-477.38945454,0.00016712,2]
[367427735,1750795836143,-460.0,0.00016712,2]
[367427736,1750795836152,-261.77,0.00016712,2]
[367427737,1750795836161,-460.0,0.00016712,2]
[367427738,1750795836171,-478.27669568,0.00016712,2]
[367427739,1750795836182,-460.0,0.00016712,2]
[367427740,1750795836191,-470.79891649,0.00016712,2]
[367427741,1750795836202,-460.0,0.00016712,2]
[367427742,1750795836213,-460.0,0.00016712,2]
[367427743,1750795836222,-460.0,0.00016712,2]
[367427744,1750795836233,-460.0,0.00016712,2]
[367427745,1750795836242,-460.0,0.00016712,2]
[367427746,1750795836251,-460.0,0.00016712,2]
[367427747,1750795836261,-483.63682239,0.00016712,2]
[367427748,1750795836270,-474.69207101,0.00016712,2]
[367427749,1750795836280,-484.6164236,0.00016712,2]
[367427750,1750795836290,-460.0,0.00016712,2]
[367427751,1750795836300,-452.23555197,0.00016712,2]
[367427752,1750795836309,-460.0,0.00016712,2]
[367427753,1750795836319,-460.0,0.00016712,2]
[367427754,1750795836328,-460.0,0.00016712,2]
[367427755,1750795836338,-460.0,0.00016712,2]
[367427756,1750795836347,-460.0,0.00016712,2]
[367427757,1750795836357,-460.0,0.00016712,2]
[367427758,1750795836367,-280.67867808,0.00016712,2]
[367427759,1750795836376,-418.28758883,0.00016712,2]
[367427760,1750795836385,-460.0,0.00016712,2]
[367427761,1750795836395,-384.7206075,0.00016712,2]
[367427762,1750795836404,-460.0,0.00016712,2]
[367427763,1750795836413,-305.94169269,0.00016712,2]
[367427764,1750795836424,-460.0,0.00016712,2]
[367427765,1750795836435,-460.0,0.00016712,2]
[367427766,1750795836444,-460.0,0.00016712,2]
[367427767,1750795836456,-196.37,0.00016712,2]
[367427768,1750795836466,-460.0,0.00016712,2]
[367427769,1750795836476,-460.0,0.00016712,2]
[367427770,1750795836485,-345.30295542,0.00016712,2]
[367427771,1750795836495,-430.0,0.00016712,2]
[367427772,1750795836504,-460.0,0.00016712,2]
[367427773,1750795836513,-460.0,0.00016712,2]
[367427774,1750795836523,-460.0,0.00016712,2]
[367427775,1750795836533,-160.39837832,0.00016712,2]
[367427776,1750795836542,-433.91934456,0.00016712,2]
[367427777,1750795836552,-460.0,0.00016712,2]
[367427778,1750795836562,-460.0,0.00016712,2]
[367427779,1750795836572,-458.57137614,0.00016712,2]
[367427780,1750795836581,-460.0,0.00016712,2]
[367427781,1750795836591,-285.38916163,0.00016712,2]
[367427782,1750795836601,-460.0,0.00016712,2]
[367427783,1750795836610,-460.0,0.00016712,2]
[367427784,1750795836620,-431.70162783,0.00016712,2]
[367427785,1750795836628,-717.53,0.00016712,2]
[367427786,1750795836638,-489.02539012,0.00016712,2]
[367427787,1750795836647,-460.0,0.00016712,2]
[367427788,1750795836657,-750.32,0.00016712,2]
[367427789,1750795836666,-460.0,0.00016712,2]
[367427790,1750795836675,-319.59771222,0.00016712,2]
[367427791,1750795836684,-360.80456741,0.00016712,2]